Cogmind - Beta 9 @@@ ROGUE MODE // 2019.10.23 @ 01:13:04 // Halloween2019/Abominations Player: Nikolayag Result: Destroyed by Lesser Abomination with Etherial Claws Performance ------------- Evolutions (0) 0 Regions Visited (1) 200 Robots Destroyed (2) 10 Value Destroyed (66) 66 Prototype IDs (0) 0 Alien Tech Used (0) 0 Bonus (0) 0 TOTAL SCORE: 276 Bonus ------- None Cogmind --------- Core Integrity 0/250 Matter 170/300 Energy 250/250 System Corruption 1% Temperature Cool (0) Location -10/Materials Parts ------- Power (1) Ion Engine Propulsion (2) Light Treads Light Treads Utility (2) Small Storage Unit Weapon (2) Assault Rifle Light Assault Rifle Inventory (6) Light Ion Engine Compact Wheel Peak State ------------ Power Ion Engine Propulsion Compact Wheel Compact Wheel Utility Improved Heat Sink Small Storage Unit Weapon Medium Laser Light Assault Rifle Inventory Light Ion Engine Light Treads Light Treads Compact Wheel Small Laser Assault Rifle [Rating: 9] Favorites ----------- Power Ion Engine Engine Ion Engine Propulsion Compact Wheel Treads Light Treads Wheel Compact Wheel Utility Small Storage Unit Device Improved Heat Sink Storage Small Storage Unit Weapon Light Assault Rifle Energy Gun Medium Laser Ballistic Gun Light Assault Rifle Build | -11 -10 ------- Run | Scr Mat Slots Evolved . | . . Power . | . . Propulsion . | . . Utility . | . . Weapon . | . . Parts Attached 12 | 6 6 Power 1 | 1 . Engine 1 | 1 . Core . | . . Reactor . | . . Propulsion 4 | 2 2 Treads 2 | . 2 Leg . | . . Wheel 2 | 2 . Hover . | . . Flight . | . . Utility 2 | 1 1 Device 1 | . 1 Storage 1 | 1 . Processor . | . . Hackware . | . . Protection . | . . Artifact . | . . Weapon 5 | 2 3 Energy Gun 2 | 1 1 Energy Cannon . | . . Ballistic Gun 3 | 1 2 Ballistic Cannon . | . . Launcher . | . . Special Weapon . | . . Impact Weapon . | . . Slashing Weapon . | . . Piercing Weapon . | . . Special Melee Weapon . | . . Unidentified Prototypes . | . . Parts Lost 5 | . 5 Power . | . . Propulsion 2 | . 2 Utility 1 | . 1 Weapon 2 | . 2 Highest Loss Streak 5 | . 5 Average Slot Usage (%) 87 | . 87 Engine 14 | . 14 Wheel 26 | . 26 Device 2 | . 2 Storage 14 | . 14 Energy Gun 12 | . 12 Ballistic Gun 15 | . 15 Naked Turns . | . . Heaviest Build 14 | 12 14 Greatest Support 32 | 32 32 Greatest Overweight (x) . | . . Average Overweight (x) . | . . Largest Inventory Capacity 6 | 6 6 Average Capacity 5 | 4 6 Most Carried 6 | 5 6 Average Carried 4 | 3 4 Final Capacity 6 | . 6 Final Carried 2 | . 2 Class Distribution -------------------- 100% | Mutant Dominant Class ---------------- Mutant | -10/Materials Resources | -11 -10 ----------- Run | Scr Mat Matter Collected 200 | 125 75 Remotely . | . . Salvage Created 114 | 77 37 Parts 7 | 2 5 Haulers Intercepted . | . . Recyclers Shooed . | . . Parts Field Recycled . | . . Retrieved Matter . | . . Parts Self-Destructed . | . . Prevented . | . . Kills | -11 -10 ------- Run | Scr Mat Combat Hostiles Destroyed 1 | . 1 Guns 1 | . 1 Classes Destroyed 2 | 1 1 Recycler 1 | 1 . Abomination 1 | . 1 Best Kill Streak 1 | 1 1 Combat Bots Only 1 | . 1 Max Kills in Single Turn 1 | 1 1 Gunslinging . | . . Exploded . | . . Melee . | . . Uniques/NPCs Destroyed . | . . Combat | -11 -10 -------- Run | Scr Mat Damage Taken 799 | . 799 Core 251 | . 251 Absorbed by Shields . | . . Core Remaining (%) 100 | 100 . Volleys Fired 12 | 3 9 Largest 2 | 2 2 Hottest 70 | 70 70 Shots Fired 24 | 6 18 Gun 24 | 6 18 Cannon . | . . Launcher . | . . Special . | . . Kinetic 17 | 3 14 Thermal 7 | 3 4 Explosive . | . . Electromagnetic . | . . Robot Hit Streak 7 | 6 7 Robot Miss Streak 2 | . 2 Penetration Max . | . . Secondary Targets . | . . Shots Hit Robots 20 | 6 14 Core Hits 6 | 2 4 Critical Hits . | . . Critical Kills . | . . Critical Parts Destroyed . | . . Melee Attacks . | . . Impact . | . . Slashing . | . . Piercing . | . . Sneak Attacks . | . . Combat Hostiles . | . . Follow-up Attacks . | . . Damage Inflicted 207 | 66 141 Guns 207 | 66 141 Cannons . | . . Explosions . | . . Melee . | . . Ramming . | . . Kinetic 125 | 29 96 Thermal 82 | 37 45 Explosive . | . . Electromagnetic . | . . Impact . | . . Slashing . | . . Piercing . | . . Highest Corruption 1 | . 1 Average Corruption 1 | . 1 Corruption Purged . | . . Overload Shots . | . . Overflow Damage . | . . Projectiles . | . . Explosions . | . . Melee . | . . Knockbacks . | . . Impact . | . . Kinetic . | . . Secondary . | . . Self-Inflicted Damage . | . . Shots . | . . Rammed . | . . Targets Rammed . | . . Kicked . | . . Crushed . | . . Highest Temperature 289 | 50 289 Average Temperature 119 | 26 171 Received Heat Transfer 87 | . 87 Effects 1 | . 1 Energy Bleed 1 | . 1 Siege Activations . | . . Robots Corrupted . | . . Combat Hostiles . | . . Parts Fried . | . . Impact Corruptions . | . . Robots Melted . | . . Combat Hostiles . | . . Parts Melted . | . . Heat Transferred 138 | 111 27 Parts Sabotaged . | . . Parts Stolen . | . . Parts Stripped . | . . Power Chain Reactions . | . . Missiles Intercepted . | . . Alert | -11 -10 ------- Run | Scr Mat Peak Influence 24 | 5 24 Average Influence 6 | 1 8 Maximum Alert Level . | . . Low Security (%) 100 | . . Level 1 . | . . Level 2 . | . . Level 3 . | . . Level 4 . | . . Level 5 . | . . High Security . | . . Max Security . | . . Squads Dispatched 1 | . 1 Investigation 1 | . 1 Extermination . | . . Reinforcement . | . . Assault . | . . Garrison . | . . Intercept . | . . Construction Impeded . | . . Haulers Reinforced . | . . Stealth | -11 -10 --------- Run | Scr Mat Distress Signals . | . . Communications Jammed . | . . Distress Signals . | . . Times Spotted 3 | . 3 Peak Tracking Total 2 | . 2 Tactical Retreats . | . . Traps | -11 -10 ------- Run | Scr Mat Traps Triggered . | . . Indirectly . | . . Trap Hack Attempts . | . . Triggered . | . . Disarmed . | . . Reprogrammed . | . . Reused . | . . Traps Extracted . | . . Installed . | . . Triggered . | . . Machines | -11 -10 ---------- Run | Scr Mat Machines Disabled . | . . Max in Single Turn . | . . Machines Sabotaged . | . . Garrisons Compromised . | . . Overloaded Fab Kills . | . . Fab Network Shutdowns . | . . Hacking | -11 -10 --------- Run | Scr Mat Machines Accessed 1 | . 1 Terminals 1 | . 1 Fabricators . | . . Repair Stations . | . . Recycling Units . | . . Scanalyzers . | . . Garrison Access . | . . Total Hacks 3 | . 3 Successful 3 | . 3 Failed . | . . Catastrophic . | . . Database Lockouts . | . . Manual 2 | . 2 Terminals 3 | . 3 Fabricators . | . . Repair Stations . | . . Recycling Units . | . . Scanalyzers . | . . Garrison Access . | . . Terminal Hacks 1 | . 1 Zone Layout 1 | . 1 Fabricator Hacks . | . . Repair Station Hacks . | . . Recycling Unit Hacks . | . . Scanalyzer . | . . Garrison Access Hacks . | . . Unauthorized Hacks 4 | . 4 Terminals 2 | . 2 Botnet 1 | . 1 Operators 1 | . 1 Fabricators . | . . Repair Stations . | . . Recycling Units . | . . Scanalyzers . | . . Garrison Access . | . . Data Cores Recovered . | . . Used . | . . Hacking Detections 1 | . 1 Full Trace Events 1 | . 1 Feedback Events . | . . Feedback Blocked . | . . Robot Schematics Acquired . | . . Robots Built . | . . Matter . | . . Time . | . . Total Robot Build Rating . | . . Part Schematics Acquired . | . . Parts Built . | . . Matter . | . . Time . | . . Total Part Build Rating . | . . Parts Repaired . | . . Time . | . . Parts Recycled . | . . Recycled Matter . | . . Retrieved Matter . | . . Retrieved Components . | . . Parts Scanalyzed . | . . Part Schematics Acquired . | . . Parts Damaged . | . . Bothacking | -11 -10 ------------ Run | Scr Mat Used RIF Installer . | . . Robots Hacked . | . . Non-combat . | . . Combat . | . . Robot Hacks Applied . | . . Relay Couplers Released . | . . Robots Rewired . | . . Allies Hacked . | . . Hacks Repelled . | . . Allies | -11 -10 -------- Run | Scr Mat Total Allies . | . . Largest Group . | . . Highest-Rated Group . | . . Highest-Rated Ally . | . . Total Orders . | . . Ally Attacks . | . . Total Damage . | . . Kills . | . . Allies Corrupted . | . . Allies Melted . | . . Intel | -11 -10 ------- Run | Scr Mat Robot Analysis Total . | . . Derelict Logs Recovered . | . . Drone Launches . | . . Drone Recoveries . | . . Exploration | -11 -10 ------------- Run | Scr Mat Turns Passed 268 | 69 199 Spaces Moved 136 | 49 87 Core 5 | 5 . Treads . | . . Legs . | . . Wheels 131 | 44 87 Hover . | . . Flight . | . . Fastest Speed 50 | 50 100 Average Speed 98 | 94 100 Slowest Speed 100 | 100 100 Overloaded Moves . | . . Propulsion Burnouts . | . . Robots Hopped . | . . Cave-ins Triggered . | . . Exploration Rate (%) 12 | 3 22 Regions Visited 1 Branch Regions . Pre-discovered Areas . | . . Known Exits Taken . | . . Unknown Exits Taken 1 | 1 . Scrap Searched . | . . Spaces Dug . | . . Terrain Destroyed . | . . Melee . | . . Projectile . | . . AOE . | . . Actions | -11 -10 --------- Run | Scr Mat Total 241 | 63 178 Wait 76 | 1 75 Move 135 | 48 87 Hop . | . . Pick Up 6 | 5 1 Fast Attach 7 | 6 1 Attach 4 | . 4 Detach . | . . Swap 1 | . 1 Drop . | . . Fire 12 | 3 9 Melee . | . . Ram . | . . Kick . | . . Crush . | . . Escape Stasis . | . . Rewire . | . . Trap . | . . Miscellaneous . | . . Route ------- -11/Scrapyard -10/Materials History --------- Turn | Location | Event 34 | -11/Scrapyard | Discovered new exit (range 16) 70 | -11/Scrapyard | Entered Materials 258 | -10/Materials | Core integrity fell below 50% 265 | -10/Materials | Core integrity fell below 20% 269 | -10/Materials | Destroyed by Lesser Abomination with Etherial Claws Last Messages --------------- 00218_ G-47 Trooper destroyed. 00219_ Acquired Imp. Heat Sink. 00227_ Engulfed by violent ripples tearing at the fabric of space. 00227_ Sml. Laser destroyed. 00231_ Lesser Abomination sheds Fire Anomaly. 00236_ Lesser Abomination spits out Aluminum Leg. 00236_ Lesser Abomination absorbs Aluminum Leg. 00238_ Lesser Abomination destroyed. 00239_ Ion Engine springs to life within a quantum being. 00240_ Overheating: Energy bleed (-40). 00240_ Lesser Abomination absorbs Heat Sink. 00241_ Med. Laser destroyed. 00243_ Lesser Abomination absorbs Heat Sink. 00244_ Acquired 37 matter. 00245_ Lesser Abomination absorbs Aluminum Leg. 00248_ Com. Wheel destroyed. 00252_ Lesser Abomination absorbs Aluminum Leg. 00256_ Imp. Heat Sink destroyed. 00260_ Com. Wheel destroyed. 00266_ Frozen by Ice Anomaly. Map ----- +----------------------------------------------------+ | ???????########????????????????????? | | ????#### / #???????###########??? | | ????# # #???????# """ T #??? | | ????# # """ #???????# """"" #??? | | ????# + """ #???????# """"" #??? | | ????# # """ ######### """"" #??? | | ????# # + + """ #??? | | ????# ################| #??? | | ????# #??????????##### #??? | | ????# ############ # #??? | | ????# #####+######## | | ????# %= " | | ?####+#### %####### ## | | # # #?????# ## ! | | # # #?????# ## ! | | # + #????## ## """ | | # # #????# # """ ^ | | # ## #????# # """ | | # ## #??????????# | | # ## #??????????# | | # ## #??????????# | | # ## #??????????#####"""T"""# | | ########### #??????????????######### | | ??????????# #??????????????????????? | | ??????????#A#??????????????????????? | | ??????????#@#??????????????????????? | | ????????? A ?????????????????????? | | ????????# ???????????????????? | | ????????# ?????????????????? | | ????????# """ #????????????????? | | ????????# """ " " #????????????????? | | ????????# """ """ + ???????????????? | | ????????# # %??????????????? | | ????????# #? ?????????????? | | ????????###########?? #????????????? | | ?????????????????????? ????????????? | | ???????????????????????????????????? | | ???????????????????????????????????? | | ???????????????????????????????????? | | ???????????????????????????????????? | | ???????????????????????????????????? | | ???????????????????????????????????? | | ???????????????????????????????????? | | ???????????????????????????????????? | | ???????????????????????????????????? | | ???????????????????????????????????? | | ???????????????????????????????????? | | ???????????????????????????????????? | | ???????????????????????????????????? | | ???????????????????????????????????? | +----------------------------------------------------+ Best States ------------- Heat Dissipation 39 Energy Generation 10 Energy Capacity 250 Matter Stores 200 Matter Capacity 300 Sight Range 16 Terrain Scan Density 10 Evasion (%) 40 Recoil Reduction 1 Item Schematics ----------------- None Robot Schematics ------------------ None Fabricated ------------ Nothing Alien Tech Used ----------------- None Achievements -------------- None Challenges ------------ None Game ------ Seed AdvancedMediumAnalyzer Manual? 0 Play Time 00:03:19 Cumulative 157.6 hours Start 2019.10.23 @ 01:11:13 End 2019.10.23 @ 01:13:04 Sessions 1 Manual Loads 0 Difficulty Rogue Special Mode Halloween2019/Abominations Game No. 158 Rogue 158 Adventurer 0 Explorer 0 Win Type - Total 3 Types 3/0/0/0/0/0/0 Lore% 48 Gallery% 67 Achievement% 42 Wizard Run 0 Options --------- ASCII 0 Keyboard 1 Movement Numpad Keybinds 0 Fullscreen 1 Font 18/SmallcapsGlow Map View 76x50 Tactical HUD 1 Map Filters NONE Filters NONE Steam 1 RUN: 2a9cbf42-1f6a-4625-acb6-42bbab85653f